bitfinex/quotes_SOLUSD_20240607
["timestamp","ask_amount","ask_price","bid_price","bid_amount"]
[1717770409301,27.2011,171.21,171.14,6.04]
[1717770409780,8.2012,171.2,171.13,6.04]
[1717770412362,14.29714376,171.2,171.13,6.04]
[1717770413568,14.29714376,171.2,171.09,6.3178]
[1717770413885,6.04,171.19,171.13,6.04]
[1717770416690,6.04,171.19,171.09,41.3878]
[1717770416869,6.04,171.19,171.13,6.04]
[1717770417589,6.04,171.19,171.09,41.3878]
[1717770417771,6.04,171.19,171.13,6.04]
[1717770419069,8.2631662,171.21,171.13,6.04]
[1717770419271,6.04,171.19,171.13,6.04]
[1717770419890,6.04,171.19,171.09,65.5478]
[1717770420096,6.04,171.18,171.09,35.07]
[1717770420263,2.1616,171.17,171.06,35.07]
[1717770420466,16.9077,171.19,171.06,35.07]
[1717770420467,6.04,171.15,171.06,35.07]
[1717770420693,6.04,171.14,171.04,126.0347]
[1717770421199,6.04,171.14,171.1,2.1623]
[1717770421376,6.04,171.14,171.08,6.04]
[1717770421680,12.1645,171.14,171.11,2.1623]
[1717770423188,12.3467,171.13,171.11,2.1623]
[1717770423412,12.3467,171.13,171.1,2.1624]
[1717770423778,12.3467,171.12,171.09,2.1625]
[1717770424190,12.3467,171.12,171.1,2.1624]
[1717770424382,6.04,171.11,171.1,2.1624]
[1717770424584,6.3067,171.12,171.1,2.1624]
[1717770424895,12.3467,171.12,171.1,2.1624]
[1717770425097,6.3067,171.12,171.1,2.1624]
[1717770425999,6.3067,171.12,171.11,2.1623]
[1717770426697,6.5907,171.14,171.11,2.1623]
[1717770426997,6.5907,171.14,171.12,2.1622]
[1717770427406,12.6307,171.14,171.12,2.1622]
[1717770427579,12.6307,171.14,171.11,2.1623]
[1717770428285,12.6307,171.14,171.12,2.1622]
[1717770428286,6.5907,171.14,171.12,2.1622]
[1717770428769,6.5907,171.14,171.11,2.1623]
[1717770429396,6.5907,171.14,171.12,2.1622]
[1717770430598,6.5907,171.14,171.09,6.04]
[1717770430805,6.5907,171.14,171.12,2.1622]
[1717770431699,12.1347189,171.15,171.12,2.1622]
[1717770435107,2.1616,171.17,171.11,2.1622]
[1717770435290,6.04,171.16,171.11,2.1622]
[1717770435602,8.2017,171.16,171.11,2.1622]
[1717770435802,14.2421,171.16,171.11,2.1622]
[1717770436017,8.2021,171.16,171.11,2.1622]
[1717770436182,12.0804,171.16,171.11,2.1622]
[1717770436389,12.0804,171.16,171.12,2.1621]
[1717770438907,6.04,171.16,171.12,2.1621]
[1717770440604,8.2017,171.16,171.11,2.1622]
[1717770440789,6.04,171.15,171.11,2.1622]
[1717770441700,6.04,171.13,171.1,2.1624]
[1717770442808,6.04,171.13,171.11,2.1623]
[1717770448615,6.04,171.13,171.12,2.1622]
[1717770448917,6.04,171.14,171.12,2.1622]
[1717770449418,6.04,171.14,171.11,2.1622]
[1717770449914,6.04,171.14,171.12,2.1622]
[1717770456121,6.04,171.13,171.05,6.04]
[1717770456324,6.04,171.11,171.1,2.1623]
[1717770457524,6.04,171.12,171.1,2.1623]
[1717770458102,6.04,171.12,171.11,2.1623]
[1717770460429,6.04,171.13,171.11,2.1623]
[1717770461137,6.09938758,171.15,171.04,6.4946]
[1717770461138,6.09938758,171.15,171.04,161.5646]
[1717770461342,6.7036,171.18,171.14,2.1618]
[1717770461631,12.79808066,171.18,171.14,2.1618]
[1717770462536,6.04,171.17,171.14,2.1618]
[1717770464947,6.04,171.17,171.11,6.04]
[1717770465146,6.04,171.16,171.06,155.07]
[1717770465434,6.04,171.16,171.1,6.04]
[1717770466729,6.04,171.16,171.13,2.162]
[1717770467327,8.91958066,171.18,171.13,2.162]
[1717770467632,6.04,171.16,171.13,2.162]
[1717770468935,6.04,171.17,171.13,2.162]
[1717770470312,6.04,171.16,171.13,2.162]
[1717770470725,6.04,171.15,171.05,16.2756]
[1717770470928,6.04,171.14,171.07,6.04]
[1717770471240,6.04,171.14,171.05,16.2756]
[1717770471441,6.04,171.14,171.1,2.1624]
[1717770471626,2.1618,171.15,171.1,2.1624]
[1717770471822,8.7217,171.15,171.1,2.1624]
[1717770472012,51.09092164,171.14,171.1,2.1624]
[1717770472939,57.13092164,171.14,171.1,2.1624]
[1717770473231,6.09092164,171.14,171.11,2.1623]
[1717770473433,6.09092164,171.14,171.12,2.1622]
[1717770476010,6.09092164,171.14,171.13,2.162]
[1717770476330,8.8651,171.18,171.13,2.162]
[1717770476633,14.95490466,171.18,171.13,2.162]
[1717770480326,8.91490466,171.18,171.13,2.162]
[1717770480536,6.04,171.16,171.12,2.1621]
[1717770481639,6.04,171.16,171.13,2.162]
[1717770483842,6.04,171.17,171.13,2.162]
[1717770484042,8.91490466,171.18,171.14,2.1619]
[1717770484238,6.04,171.17,171.14,2.1619]
[1717770485540,6.04,171.17,171.13,2.162]
[1717770486042,6.04,171.17,171.14,2.1619]
[1717770486241,8.91480466,171.18,171.14,2.1619]
[1717770486433,6.04,171.17,171.14,2.1619]
[1717770487535,66.8802,171.16,171.11,6.04]
[1717770487733,6.04,171.13,171.07,6.04]
[1717770487935,20.0,171.12,171.09,2.1625]
[1717770488246,20.0,171.12,171.1,2.1624]
[1717770488453,6.04,171.13,171.1,2.1624]
[1717770488632,6.0912826,171.15,171.11,2.1622]
[1717770488633,6.04,171.14,171.11,2.1622]
[1717770488822,8.2531826,171.15,171.11,2.1622]
[1717770489026,20.0,171.14,171.11,2.1622]
[1717770490031,6.0912826,171.15,171.12,2.1622]
[1717770490534,8.2530826,171.15,171.11,2.1622]
[1717770492252,6.0912826,171.15,171.12,8.3038]
[1717770492442,6.7036,171.18,171.13,2.162]
[1717770492635,22.1616,171.17,171.13,8.202]
[1717770495758,6.75367989,171.18,171.15,8.2017]
[1717770495934,0.6636,171.18,171.16,8.2016]
[1717770496258,0.6636,171.18,171.17,8.2015]
[1717770496938,0.6636,171.18,171.17,14.7417]
[1717770497454,0.6636,171.18,171.17,29.8719]
[1717770499138,0.6636,171.18,171.17,23.8319]
[1717770499339,0.6636,171.18,171.17,29.8719]
[1717770510141,0.6636,171.18,171.17,14.7417]
[1717770516976,0.6636,171.18,171.17,185.4829]
[1717770518664,1e-08,171.18,171.17,185.4829]
[1717770520582,1e-08,171.18,171.17,65.4829]
[1717770522386,1e-08,171.18,171.17,49.8117]
[1717770526868,1e-08,171.18,171.17,55.8517]
[1717770527896,1e-08,171.18,171.17,72.4792]
[1717770530673,1e-08,171.18,171.17,55.8517]
[1717770530867,1e-08,171.18,171.17,49.8117]
[1717770534597,1e-08,171.18,171.17,43.2715]
[1717770539684,1e-08,171.18,171.17,8.2015]
[1717770540294,1e-08,171.18,171.17,2.1615]
[1717770540492,1e-08,171.18,171.17,8.2015]
[1717770540726,1e-08,171.18,171.17,2.1615]
[1717770540889,1e-08,171.18,171.17,8.2015]
[1717770551695,1e-08,171.18,171.17,2.1615]
[1717770552010,1e-08,171.18,171.17,8.2015]
[1717770555612,1e-08,171.18,171.17,2.1615]
[1717770555806,1e-08,171.18,171.17,8.2015]
[1717770567027,1e-08,171.18,171.17,51.79437801]
[1717770567201,1e-08,171.18,171.17,57.83437801]
[1717770567401,1e-08,171.18,171.17,51.79437801]
[1717770567814,1e-08,171.18,171.17,49.4587]
[1717770570604,1e-08,171.18,171.17,43.2715]
[1717770574404,16.4009,171.31,171.21,35.07]
[1717770574623,16.4009,171.31,171.25,6.04]
[1717770574805,22.4409,171.31,171.24,6.04]
[1717770575718,18.5607,171.31,171.21,35.07]
[1717770575916,6.04,171.3,171.21,35.07]
[1717770576306,6.04,171.3,171.2,120.0]
[1717770576505,18.5607,171.31,171.19,35.07]
[1717770576506,6.04,171.27,171.19,35.07]
[1717770576814,6.04,171.28,171.18,120.0]
[1717770577118,6.04,171.28,171.22,6.04]
[1717770577341,6.04,171.28,171.17,6.5002]
[1717770577542,6.04,171.26,171.16,155.07]
[1717770577833,6.04,171.26,171.2,6.04]
[1717770578241,6.04,171.27,171.21,6.04]
[1717770578424,12.1231,171.27,171.21,6.04]
[1717770579316,8.2004,171.26,171.15,35.07]
[1717770579520,8.2004,171.26,171.19,6.04]
[1717770579833,6.04,171.26,171.19,6.04]
[1717770580236,6.04,171.25,171.19,6.04]
[1717770580738,8.2434,171.27,171.19,6.04]
[1717770580910,6.04,171.26,171.19,6.04]
[1717770583139,6.04,171.25,171.19,6.04]
[1717770584152,8.2434,171.27,171.19,6.04]
[1717770584313,12.1231,171.27,171.2,6.04]
[1717770584513,14.2834,171.27,171.2,6.04]
[1717770584713,6.04,171.26,171.2,6.04]
[1717770585455,8.2434,171.27,171.2,6.04]
[1717770585621,6.04,171.26,171.15,35.07]
[1717770585819,6.04,171.26,171.2,6.04]
[1717770586228,6.04,171.26,171.15,35.07]
[1717770586435,6.04,171.26,171.2,6.04]
[1717770586831,8.2004,171.26,171.2,6.04]
[1717770587156,6.04,171.26,171.2,6.04]
[1717770587348,6.04,171.26,171.15,35.07]
[1717770587640,6.04,171.26,171.2,6.04]
[1717770588545,8.2435,171.27,171.2,6.04]
[1717770589044,6.04,171.26,171.2,6.04]
[1717770590426,6.04,171.26,171.15,35.07]
[1717770590621,6.04,171.26,171.2,6.04]
[1717770592042,8.2004,171.26,171.2,6.04]
[1717770593042,8.2435,171.27,171.2,6.04]
[1717770593243,6.04,171.26,171.2,6.04]
[1717770593445,6.0831,171.27,171.21,6.04]
[1717770593750,6.0831,171.27,171.22,6.04]
[1717770595242,6.0831,171.27,171.21,6.04]
[1717770597333,6.0831,171.27,171.17,155.07]
[1717770597531,6.04,171.26,171.2,6.04]
[1717770598650,8.2434,171.27,171.2,6.04]
[1717770598949,14.2834,171.27,171.2,6.04]
[1717770600355,12.1231,171.27,171.2,6.04]
[1717770600532,12.1231,171.27,171.16,35.07]
[1717770600727,12.1231,171.27,171.2,6.04]
[1717770602860,12.1231,171.27,171.16,35.07]
[1717770603020,12.1231,171.27,171.2,6.04]
[1717770604951,6.0831,171.27,171.21,6.04]
[1717770605147,6.0831,171.27,171.22,6.04]
[1717770605525,6.0994241,171.3,171.23,6.04]
[1717770605725,16.4009,171.31,171.24,6.04]
[1717770605923,20.0,171.3,171.24,6.04]
[1717770607045,20.0,171.3,171.25,6.04]
[1717770607340,26.5856,171.3,171.25,6.04]
[1717770607922,6.5856,171.3,171.25,6.04]
[1717770608142,6.5856,171.3,171.26,6.04]
[1717770608561,6.5856,171.3,171.25,6.04]
[1717770608857,6.5856,171.3,171.2,161.38646915]
[1717770609041,6.5856,171.3,171.25,6.04]
[1717770609748,6.5856,171.3,171.2,161.38646915]
[1717770609950,6.5856,171.3,171.25,6.04]
[1717770610659,6.5856,171.3,171.2,161.38646915]
[1717770610660,6.5856,171.3,171.24,6.04]
[1717770611063,6.5856,171.3,171.2,161.38646915]
[1717770611361,6.5856,171.3,171.24,6.04]
[1717770612767,6.5856,171.3,171.25,6.04]
[1717770613066,24.6701,171.31,171.25,6.04]
[1717770613262,30.7101,171.31,171.25,6.04]
[1717770613460,28.5503,171.31,171.25,6.04]
[1717770614366,30.7101,171.31,171.25,6.04]
[1717770615266,28.5503,171.31,171.25,6.04]
[1717770615566,22.5103,171.31,171.25,6.04]
[1717770617666,24.6701,171.31,171.25,6.04]
[1717770617846,24.6701,171.31,171.26,6.04]
[1717770618046,18.5607,171.31,171.25,6.04]
[1717770618246,18.5607,171.31,171.2,155.07]
[1717770618476,18.5607,171.31,171.25,6.04]
[1717770619553,18.5607,171.31,171.22,120.0]
[1717770619751,18.5607,171.31,171.25,6.04]
[1717770619963,18.5607,171.31,171.2,41.38646915]
[1717770619964,2.1599,171.3,171.24,6.04]
[1717770620869,18.5607,171.31,171.24,6.04]
[1717770623378,16.4009,171.31,171.25,6.04]
[1717770623881,16.4009,171.31,171.24,6.04]
[1717770624188,6.3954,171.32,171.23,35.07]
[1717770624492,6.3954,171.32,171.27,6.04]
[1717770625676,6.04,171.32,171.26,6.04]
[1717770626062,6.04,171.32,171.23,35.07]
[1717770626262,6.04,171.32,171.26,6.04]
[1717770627374,14.7843,171.33,171.23,35.07]
[1717770627579,14.7843,171.33,171.26,6.04]
[1717770627884,6.04,171.32,171.26,6.04]
[1717770628081,8.7443,171.33,171.26,6.04]
[1717770628287,6.04,171.32,171.26,6.04]
[1717770628478,6.04,171.32,171.23,35.07]
[1717770628679,6.04,171.32,171.26,6.04]
[1717770628982,6.5847,171.33,171.25,155.07]
[1717770629182,6.5847,171.33,171.29,6.04]
[1717770629577,6.5847,171.33,171.3,6.04]
[1717770629782,6.5847,171.33,171.29,6.04]
[1717770633657,6.0407,171.36,171.29,6.04]
[1717770633861,6.04,171.35,171.29,6.04]
[1717770634559,2.1594,171.34,171.24,35.07]
[1717770634761,6.04,171.33,171.27,6.04]
[1717770635198,2.1594,171.35,171.21,230.55934894]
[1717770635199,6.04,171.31,171.21,230.55934894]
[1717770635365,6.04,171.31,171.25,6.04]
[1717770636265,6.04,171.32,171.26,6.04]
[1717770636564,6.1106,171.33,171.27,6.04]
[1717770636769,6.1106,171.33,171.23,120.0]
[1717770636770,24.4746,171.35,171.28,6.04]
[1717770636991,26.04,171.34,171.28,6.04]
[1717770637284,6.04,171.33,171.27,6.04]
[1717770637488,22.1594,171.34,171.19,6.2994]
[1717770637489,20.0,171.34,171.25,155.03]
[1717770637662,22.3153,171.35,171.29,6.04]
[1717770637863,28.3553,171.35,171.29,6.04]
[1717770638275,28.3553,171.35,171.3,6.04]
[1717770638480,22.3153,171.35,171.3,6.04]
[1717770639886,28.3553,171.35,171.29,6.04]
[1717770640382,8.1994,171.34,171.28,6.04]
[1717770640565,8.1994,171.34,171.24,35.03]
[1717770640764,8.1994,171.34,171.27,6.04]
[1717770640991,6.04,171.34,171.27,6.04]
[1717770641591,6.04,171.33,171.27,6.04]
[1717770642167,6.04,171.34,171.27,6.04]
[1717770642384,8.1994,171.34,171.27,6.04]
[1717770642784,6.04,171.34,171.27,6.04]
[1717770645468,22.3153,171.35,171.29,6.04]
[1717770646692,24.4746,171.35,171.29,6.04]
[1717770646897,22.3153,171.35,171.29,6.04]
[1717770647791,6.04,171.33,171.24,35.03]
[1717770648084,6.04,171.33,171.27,6.04]
[1717770649303,6.04,171.33,171.24,35.03]
[1717770649546,6.04,171.33,171.26,6.04]
[1717770650786,6.04,171.33,171.27,6.04]
[1717770651089,6.04,171.33,171.24,35.03]
[1717770651288,6.04,171.33,171.27,6.04]
[1717770652301,6.04,171.32,171.26,6.04]
[1717770653077,6.04,171.32,171.24,35.03]
[1717770653292,6.04,171.32,171.26,6.04]
[1717770656201,6.04,171.32,171.24,35.03]
[1717770656411,6.04,171.32,171.26,6.04]
[1717770656917,6.04,171.32,171.24,35.03]
[1717770657215,6.04,171.32,171.26,6.04]
[1717770660609,6.04,171.33,171.27,6.04]
[1717770661422,6.04,171.32,171.26,6.04]
[1717770661710,24.4746,171.35,171.26,6.04]
[1717770661914,6.04,171.32,171.26,6.04]
[1717770663022,22.3153,171.35,171.26,6.04]
[1717770663195,6.04,171.32,171.26,6.04]
[1717770664317,6.04,171.32,171.24,35.03]
[1717770664535,6.04,171.32,171.26,6.04]
[1717770665402,6.04,171.31,171.21,35.03]
[1717770665717,6.04,171.28,171.19,6.2994]
[1717770665915,6.04,171.28,171.22,6.04]
[1717770666223,6.04,171.28,171.19,6.2994]
[1717770666409,6.04,171.28,171.22,6.04]
[1717770666717,6.04,171.28,171.19,41.3294]
[1717770666894,6.04,171.28,171.22,6.04]
[1717770667415,6.04,171.28,171.19,35.03]
[1717770667720,6.04,171.28,171.22,6.04]
[1717770668218,2.1598,171.31,171.22,6.04]
[1717770668423,6.04,171.29,171.23,6.04]
[1717770670118,6.04,171.39,171.29,35.03]
[1717770670420,6.04,171.39,171.29,44.48871031]
[1717770670722,6.04,171.38,171.32,6.04]
[1717770670904,30.57973352,171.41,171.29,44.48871031]
[1717770670905,6.04,171.37,171.31,6.04]
[1717770672003,6.04,171.36,171.3,6.04]
[1717770672423,6.04,171.37,171.31,6.04]
[1717770672600,2.1587,171.4,171.27,120.0]
[1717770672802,6.04,171.37,171.31,6.04]
[1717770673025,6.04,171.38,171.32,6.04]
[1717770673619,6.04,171.37,171.32,6.04]
[1717770674012,6.04,171.37,171.27,161.07]
[1717770674013,12.6718,171.37,171.27,160.872]
[1717770674213,12.6718,171.37,171.27,188.85814654]
[1717770674419,12.6718,171.37,171.31,6.04]
[1717770674637,12.6718,171.37,171.26,6.04]
[1717770674638,6.04,171.32,171.26,6.04]
[1717770674810,6.04,171.33,171.27,6.04]
[1717770675651,32.6718,171.36,171.29,6.04]
[1717770675807,26.6318,171.36,171.29,6.04]
[1717770676141,32.6718,171.36,171.3,6.04]
[1717770676503,6.2008,171.35,171.31,6.04]
[1717770676931,6.2008,171.35,171.3,6.04]
[1717770678432,12.2408,171.35,171.29,6.04]
[1717770679712,12.2408,171.35,171.25,155.03]
[1717770680034,12.2408,171.35,171.29,6.04]
[1717770684927,12.2408,171.35,171.25,155.03]
[1717770685245,14.4001,171.35,171.29,6.04]
[1717770686424,12.2408,171.35,171.29,6.04]
[1717770687132,14.4001,171.35,171.24,35.03]
[1717770687433,8.1994,171.34,171.28,6.04]
[1717770688428,6.04,171.34,171.28,6.04]
[1717770691841,8.3601,171.35,171.28,6.04]
[1717770692018,6.04,171.34,171.28,6.04]
[1717770693719,12.2408,171.35,171.28,6.04]
[1717770693928,6.2008,171.35,171.3,6.04]
[1717770694941,12.2408,171.35,171.29,6.04]
[1717770695412,12.2408,171.35,171.25,35.03]
[1717770695612,12.2408,171.35,171.29,6.04]
[1717770696831,6.2008,171.35,171.29,6.04]
[1717770697035,12.2408,171.35,171.29,6.04]
[1717770699119,14.4001,171.35,171.25,35.03]
[1717770699334,8.3601,171.35,171.25,35.03]
[1717770699517,8.1994,171.34,171.25,35.03]
[1717770699833,6.04,171.33,171.27,6.04]
[1717770700822,6.04,171.34,171.28,6.04]
[1717770701218,6.04,171.33,171.23,35.03]
[1717770701426,8.1997,171.32,171.2,415.2518]
[1717770701650,17.1712,171.35,171.2,415.2518]
[1717770701651,6.04,171.3,171.2,415.2518]
[1717770701821,6.04,171.29,171.24,6.04]
[1717770702014,6.3745,171.28,171.23,6.04]
[1717770702638,6.3745,171.28,171.24,6.04]
[1717770705014,6.3745,171.28,171.2,155.03]
[1717770705218,6.3745,171.28,171.2,6.04]
[1717770705219,6.04,171.26,171.2,6.04]
[1717770706053,6.04,171.27,171.21,6.04]
[1717770706539,8.5347,171.28,171.21,6.04]
[1717770706722,26.04,171.27,171.21,6.04]
[1717770708147,28.2003,171.27,171.21,6.04]
[1717770708442,6.04,171.26,171.2,6.04]
[1717770708643,26.04,171.27,171.21,6.04]
[1717770708835,28.2003,171.27,171.21,6.04]
[1717770709242,26.04,171.27,171.21,6.04]
[1717770710646,26.1641,171.27,171.22,6.04]
[1717770711425,32.2041,171.27,171.21,6.04]
[1717770712555,26.1641,171.27,171.21,6.04]
[1717770712865,32.2041,171.27,171.21,6.04]
[1717770713435,26.1641,171.27,171.22,6.04]
[1717770713726,6.591,171.31,171.21,120.0]
[1717770713950,6.591,171.31,171.25,6.04]
[1717770714132,12.631,171.31,171.25,6.04]
[1717770714543,14.7908,171.31,171.25,6.04]
[1717770715038,8.7508,171.31,171.25,6.04]
[1717770715241,6.1675,171.3,171.26,1.16740002]
[1717770716231,12.2075,171.3,171.25,6.04]
[1717770716431,12.2075,171.3,171.24,6.04]
[1717770717438,8.2004,171.27,171.16,126.3905]
[1717770717634,6.04,171.26,171.2,6.04]
[1717770718231,6.04,171.25,171.19,6.04]
[1717770718549,6.04,171.26,171.2,6.04]
[1717770719429,8.2004,171.26,171.19,6.04]
[1717770719730,6.04,171.25,171.16,161.4205]
[1717770719942,6.04,171.25,171.19,6.04]
[1717770720248,6.04,171.26,171.2,6.04]
[1717770720950,2.1602,171.28,171.2,6.04]
[1717770721149,6.04,171.26,171.2,6.04]
[1717770721453,6.04,171.27,171.21,6.04]
[1717770721826,8.2003,171.27,171.21,6.04]
[1717770722026,6.04,171.26,171.2,6.04]
[1717770722346,6.04,171.25,171.16,155.03]
[1717770722538,6.04,171.24,171.18,6.04]
[1717770724452,6.04,171.24,171.15,35.03]
[1717770724649,6.04,171.24,171.18,6.04]
[1717770724850,6.04,171.23,171.15,35.03]
[1717770725055,2.1607,171.24,171.15,6.04]
[1717770725244,6.04,171.21,171.15,6.04]
[1717770726037,6.04,171.22,171.13,35.03]
[1717770726237,6.04,171.22,171.16,6.04]
[1717770726439,6.04,171.22,171.13,35.03]
[1717770726644,6.04,171.22,171.16,6.04]
[1717770727632,6.04,171.21,171.15,6.04]
[1717770728750,2.1609,171.22,171.12,254.0]
[1717770728946,6.04,171.19,171.09,185.032]
[1717770729154,6.04,171.18,171.13,6.04]
[1717770729457,6.04,171.18,171.12,6.04]
[1717770729761,12.1291,171.16,171.11,6.04]
[1717770729968,6.0891,171.16,171.11,6.04]
[1717770730138,15.6789,171.2,171.13,6.04]
[1717770730337,21.7189,171.2,171.14,6.04]
[1717770730952,6.4394,171.22,171.16,6.04]
[1717770731159,26.4394,171.21,171.16,6.04]
[1717770731859,6.4394,171.21,171.16,6.04]
[1717770732847,14.8228,171.22,171.16,6.04]
[1717770733052,8.2009,171.22,171.16,6.04]
[1717770733370,6.04,171.22,171.12,35.03]
[1717770733540,6.04,171.19,171.13,6.04]
[1717770733940,8.2012,171.2,171.13,6.04]
[1717770734240,6.04,171.2,171.13,6.04]
[1717770734570,6.04,171.2,171.14,6.04]
[1717770735449,6.04,171.21,171.15,6.04]
[1717770736146,2.1611,171.21,171.15,6.04]
[1717770736338,8.2011,171.21,171.15,6.04]
[1717770736842,8.2011,171.21,171.11,155.03]
[1717770737037,2.1611,171.21,171.15,6.04]
[1717770737241,6.04,171.21,171.15,6.04]
[1717770737663,8.2011,171.21,171.15,6.04]
[1717770739869,2.1612,171.2,171.1,35.03]
[1717770740073,6.04,171.19,171.1,35.03]
[1717770740287,6.04,171.19,171.13,6.04]
[1717770740450,6.04,171.18,171.13,6.04]
[1717770740650,6.2798,171.18,171.13,6.04]
[1717770741176,14.3153,171.19,171.08,35.03]
[1717770741379,8.2016,171.17,171.11,6.04]
[1717770741556,6.04,171.17,171.11,6.04]
[1717770741983,6.04,171.16,171.08,35.03]
[1717770742272,12.0912,171.15,171.12,2.1621]
[1717770742771,6.0512,171.15,171.12,2.1621]
[1717770743651,6.0512,171.15,171.13,2.162]
[1717770744054,2.1615,171.18,171.08,35.03]
[1717770744354,2.1615,171.18,171.14,2.1619]
[1717770744355,34.8641,171.18,171.14,2.1619]
[1717770744558,6.6626,171.17,171.14,2.1619]
[1717770744751,6.6626,171.17,171.13,2.162]
[1717770744948,6.6626,171.16,171.13,2.162]
[1717770745168,6.6626,171.16,171.12,2.1621]
[1717770745372,6.6626,171.14,171.11,2.1622]
[1717770745784,6.6626,171.14,171.12,2.1622]
[1717770746467,6.6626,171.14,171.11,2.1622]
[1717770748183,6.6626,171.14,171.12,2.1622]
[1717770748558,6.6626,171.14,171.11,2.1622]
[1717770749278,6.6626,171.14,171.12,2.1622]
[1717770751081,20.0,171.18,171.13,2.162]
[1717770751381,12.1136,171.17,171.13,2.162]
[1717770751560,20.0,171.16,171.13,2.162]
[1717770751760,20.0,171.16,171.12,2.1621]
[1717770752678,26.0384,171.16,171.12,2.1621]
[1717770752877,34.2401,171.16,171.11,2.1622]
[1717770753182,8.2018,171.15,171.11,2.1622]
[1717770753371,12.1364,171.14,171.11,2.1622]
[1717770753765,6.0964,171.14,171.11,2.1622]
[1717770754959,6.0964,171.14,171.1,2.1624]
[1717770755164,6.04,171.14,171.1,2.1624]
[1717770755471,6.0195,171.13,171.1,2.1624]
[1717770755656,6.0195,171.13,171.05,35.03]
[1717770755853,6.04,171.12,171.07,6.04]
[1717770756060,6.04,171.12,171.09,2.1625]
[1717770757171,12.2821,171.12,171.07,6.04]
[1717770757375,12.2821,171.12,171.09,2.1625]
[1717770758490,6.2421,171.12,171.1,2.1624]
[1717770758985,6.2421,171.12,171.09,2.1625]
[1717770759782,6.2421,171.12,171.1,2.1624]
[1717770760285,41.60255302,171.16,171.08,6.04]
[1717770760490,20.0,171.16,171.12,2.1621]
[1717770760789,6.2343,171.17,171.13,2.162]
[1717770760976,26.04,171.16,171.12,2.1621]
[1717770761169,20.0,171.16,171.13,2.162]
[1717770761570,26.04,171.16,171.12,2.1621]
[1717770761775,6.04,171.14,171.04,35.03]
[1717770761975,6.04,171.11,171.0,126.5434]
[1717770762293,6.04,171.11,171.07,2.1627]
[1717770762583,6.04,171.11,171.08,2.1626]
[1717770763267,6.04,171.12,171.08,2.1626]
[1717770764375,2.1621,171.13,171.09,2.1625]
[1717770764581,20.0,171.14,171.12,2.1621]
[1717770764888,28.2017,171.16,171.12,2.1622]
[1717770765095,34.6282,171.16,171.12,2.1622]